fUSD/lending_fUSD_20240406
["ID","MTS","AMOUNT","RATE_DAILY","PERIOD"]
[321696530,1712403046382,-2519.80464414,0.00022587,2]
[321696531,1712403046391,-16130.5188054,0.00022587,2]
[321696532,1712403046401,-489.89464573,0.00022809,2]
[321696533,1712403046410,-56.74689369,0.000229,2]
[321696534,1712403046423,-361.22490631,0.000229,2]
[321696535,1712403046433,-2519.80464414,0.00022973,2]
[321696536,1712403046443,-5270.45773789,0.00022973,2]
[321696537,1712403046454,-750.52233814,0.00022973,2]
[321696538,1712403046465,-281.57138385,0.00022973,2]
[321696539,1712403046482,-9827.96734552,0.00022973,2]
[321696540,1712403046492,-239.01,0.0002299,2]
[321696541,1712403046501,-500.0,0.00022999,2]
[321696542,1712403046511,-500.0,0.00022999,2]
[321696543,1712403046520,-529.84242473,0.00022999,2]
[321696544,1712403046530,-136890.63455117,0.00023,2]
[321696545,1712403046539,-250.0,0.00023,3]
[321696546,1712403046549,-300.0,0.00023078,2]
[321696547,1712403046558,-489.89464573,0.00023156,2]
[321696548,1712403046568,-1422.88127158,0.00023179,2]
[321696549,1712403046578,-277.55,0.00023186,2]
[321696550,1712403046590,-2098.78,0.00023248,2]
[321696551,1712403046603,-2519.80464414,0.00023358,2]
[321696552,1712403046612,-16130.5188054,0.00023358,2]
[321696553,1712403046623,-460.0,0.000234,2]
[321696554,1712403046633,-1066.35028848,0.000235,2]
[321696555,1712403046644,-7500.0,0.000235,2]
[321696556,1712403046653,-150.0,0.000235,2]
[321696557,1712403046664,-489.89464573,0.00023503,2]
[321696558,1712403046676,-283.43560682,0.00023503,2]
[321696559,1712403046687,-154.53413923,0.00023503,2]
[321696560,1712403046699,-500.0,0.00023504,2]
[321696561,1712403046709,-6427.44807903,0.00023505,2]
[321696562,1712403046719,-152.0,0.00023583,2]
[321696563,1712403046731,-239.01,0.0002359,2]
[321696564,1712403046742,-239.01,0.0002359,2]
[321696565,1712403046754,-239.01,0.0002359,2]
[321696566,1712403046766,-239.01,0.0002359,2]
[321696567,1712403046777,-239.01,0.0002359,2]
[321696568,1712403046787,-239.01,0.0002359,2]
[321696569,1712403046798,-239.01,0.0002359,2]
[321696570,1712403046810,-239.01,0.0002359,2]
[321696571,1712403046821,-301.06938817,0.0002359,2]
[321696572,1712403046831,-301.06938817,0.0002359,2]
[321696573,1712403046842,-279.92920536,0.00023599,2]
[321696574,1712403046853,-500.0,0.00023599,2]
[321696575,1712403046863,-500.0,0.00023599,2]
[321696576,1712403046873,-500.0,0.00023599,2]
[321696577,1712403046884,-500.0,0.00023599,2]
[321696578,1712403046894,-500.0,0.00023599,2]
[321696579,1712403046905,-500.0,0.00023599,2]
[321696580,1712403046915,-500.0,0.00023599,2]
[321696581,1712403046925,-500.0,0.00023599,2]
[321696582,1712403046936,-500.0,0.00023599,2]
[321696583,1712403046946,-500.0,0.00023599,2]
[321696584,1712403046956,-500.0,0.00023599,2]
[321696585,1712403046967,-500.0,0.00023599,2]
[321696586,1712403046977,-500.0,0.00023599,2]
[321696587,1712403046988,-500.0,0.00023599,2]
[321696588,1712403046998,-500.0,0.00023599,2]
[321696589,1712403047007,-500.0,0.00023599,2]
[321696590,1712403047018,-500.0,0.00023599,2]
[321696591,1712403047028,-1022.0,0.000236,2]
[321696592,1712403047038,-483.53462901,0.000236,2]
[321696593,1712403047050,-471689.47347565,0.000236,3]
[321696978,1712403592130,151.0,0.00029951,120]
[321697042,1712404232261,-155.0,0.0001982,2]
[321697043,1712404232272,-808.90934401,0.0001982,2]
[321697044,1712404232283,-165.33600893,0.00019821,2]
[321697045,1712404232296,-41.83667769,0.00019821,2]
[321697046,1712404232308,-359.77559381,0.00019842,2]
[321697047,1712404232319,-26.55440619,0.00019842,2]
[321697048,1712404232328,-789.14057157,0.00021325,2]
[321697049,1712404232339,-210.85942843,0.00021325,2]
[321697050,1712404232348,-4807.79229444,0.00021349,2]
[321697051,1712404232372,-634.51812292,0.00021349,2]
[321697052,1712404232383,-496.29675969,0.00021349,2]
[321697053,1712404232430,-324.10000261,0.00021349,2]
[321697054,1712404232489,-6660.22282034,0.00021349,2]
[321697055,1712404232501,-3094.5,0.00021372,2]
[321697056,1712404232511,-698.92,0.00021394,2]
[321697057,1712404232519,-1391.69,0.00021397,2]
[321697058,1712404232528,-150.0,0.00021699,2]
[321697059,1712404232537,-150.0,0.00021715,2]
[321697060,1712404232546,-499.99,0.00021716,2]
[321697061,1712404232555,-3856.5876,0.00021813,2]
[321697062,1712404232566,-170.0,0.0002184,2]
[321697063,1712404232576,-1524.70479963,0.00021916,2]
[321697064,1712404232586,-4975.77,0.00021916,2]
[321697065,1712404232595,-571.25257834,0.00021917,2]
[321697066,1712404232605,-224.87,0.00021947,2]
[321697067,1712404232614,-224.87,0.00022007,2]
[321697068,1712404232624,-224.87,0.00022067,2]
[321697069,1712404232633,-386.33,0.00022106,2]
[321697070,1712404232643,-224.87,0.00022127,2]
[321697071,1712404232652,-224.87,0.00022187,2]
[321697072,1712404232665,-3147.72141419,0.000222,2]
[321697073,1712404232674,-224.87,0.00022248,2]
[321697074,1712404232683,-224.87,0.00022308,2]
[321697075,1712404232694,-224.87,0.00022368,2]
[321697076,1712404232704,-224.87,0.00022428,2]
[321697077,1712404232713,-224.87,0.00022488,2]
[321697078,1712404232722,-224.87,0.00022549,2]
[321697079,1712404232732,-224.87,0.00022609,2]
[321697080,1712404232743,-224.87,0.00022669,2]
[321697081,1712404232753,-224.87,0.00022729,2]
[321697082,1712404232762,-224.87,0.00022789,2]
[321697083,1712404232771,-1585.4548,0.000228,2]
[321697084,1712404232781,-2132.6935,0.000228,2]
[321697085,1712404232791,-1792.5696,0.000228,2]
[321697086,1712404232800,-6491.10909237,0.000228,2]
[321697087,1712404232809,-1139.45743842,0.000228,2]
[321697088,1712404232819,-224.87,0.0002285,2]
[321697089,1712404232829,-624.05493274,0.00022898,2]
[321697090,1712404232838,-117.52696614,0.00022898,2]
[321697091,1712404232850,-670.78694448,0.00022898,2]
[321697092,1712404232862,-857.80460419,0.00022898,2]
[321697093,1712404232873,-402.93064691,0.00022898,2]
[321697094,1712404232883,-67.73358186,0.00022899,2]
[321697095,1712404232894,-1121.04454154,0.00022899,2]
[321697096,1712404232905,-821.59785975,0.00022899,2]
[321697097,1712404232917,-149.38059468,0.00022899,2]
[321697098,1712404232926,-2178.819,0.00022899,2]
[321697099,1712404232936,-500.0,0.00022899,2]
[321697100,1712404232951,-500.38499999,0.00022899,2]
[321697101,1712404232961,-500.0,0.00022899,2]
[321697102,1712404232970,-7019.9946094,0.000229,2]
[321697103,1712404232982,-398.99154953,0.000229,2]
[321697122,1712404238232,-150.41061751,0.00022899,2]
[321697123,1712404238243,-670.0426061,0.000229,2]
[321697247,1712404240298,-255.71579379,0.000229,2]
[321697248,1712404240514,-1019.2999999,0.000229,2]
[321697263,1712404243122,-1063.82890991,0.000229,2]
[321697265,1712404243135,-1464.85383896,0.000229,2]
[321697267,1712404243146,-315.6,0.000229,2]
[321697278,1712404243236,-1231.8214845,0.000229,2]
[321697280,1712404243248,-753.708395,0.000229,2]
[321697286,1712404243294,-4044.250584,0.000229,2]
[321697288,1712404243305,-937.480368,0.000229,2]
[321697293,1712404243403,-6135.18089181,0.000229,2]
[321697294,1712404243415,-17885.04738239,0.000229,2]
[321697295,1712404243506,-6024.16984185,0.000229,2]
[321697296,1712404243560,-5273.22027299,0.000229,2]
[321697297,1712404243571,-2812.07759977,0.000229,2]
[321697298,1712404243616,-652.62529538,0.000229,2]
[321697309,1712404246235,-125214.81664327,0.000229,2]
[321697312,1712404246248,-8184.32862433,0.000229,2]
[321697315,1712404246293,-1050.97805204,0.000229,2]
[321697337,1712404927084,1114.136,0.0002721,30]
[321697339,1712405081608,-5800.0,0.00018695,2]
[321697340,1712405081636,-207.17268662,0.00018999,2]
[321697341,1712405081662,-14457.05794509,0.00019,2]
[321697342,1712405104421,323.07531063,0.00019,2]
[321697343,1712405120499,202.96160464,0.00019,2]
[321697344,1712405141141,-53974.01893211,0.00019699,2]
[321697346,1712405197795,-37201.70313996,0.00019699,2]
[321697347,1712405197814,-4351.84536889,0.000197,2]
[321697348,1712405197835,-377.66,0.0001994,2]
[321697349,1712405197857,-241.24725913,0.00020408,2]
[321697350,1712405197877,-182.91282882,0.000209,2]
[321697351,1712405197899,-244.9473229,0.000209,2]
[321697352,1712405197920,-154.53413923,0.000209,2]
[321697353,1712405197942,-5901.81471684,0.000209,2]
[321697354,1712405197963,-5891.82740575,0.000209,2]
[321697355,1712405197982,-249.65476881,0.000209,2]
[321697356,1712405198002,-226.74848544,0.000209,2]
[321697357,1712405198023,-302.40106342,0.000209,2]
[321697358,1712405198042,-168.07338346,0.000209,2]
[321697359,1712405198061,-1129.77110704,0.000209,2]
[321697360,1712405198080,-157.15500887,0.000209,2]
[321697361,1712405198099,-3561.76048442,0.000209,2]
[321697362,1712405198118,-1420.18750183,0.000209,2]
[321697363,1712405198139,-183.94435802,0.000209,2]
[321697364,1712405198159,-268.98822868,0.00020977,2]
[321697365,1712405198178,-150.5346941,0.0002099,2]
[321697366,1712405198197,-150.5346941,0.0002099,2]
[321697367,1712405198216,-624.05493274,0.00020999,2]
[321697368,1712405198238,-103857.69910755,0.00021,2]
[321697369,1712405212096,-2699.71175316,0.00021,2]
[321697370,1712405235118,-2131.84814413,0.000209,2]
[321697371,1712405235137,-425.50779126,0.00020988,2]
[321697372,1712405235156,-624.05493274,0.00020999,2]
[321697373,1712405235176,-3459.00955828,0.00021,2]
[321697374,1712405246110,-160.02856546,0.000209,2]
[321697375,1712405246131,-113617.42726465,0.00021,2]
[321697376,1712405253103,-624.05493274,0.00020999,2]
[321697377,1712405253125,-31017.95090022,0.00021,2]
[321697379,1712405260698,-300000.0,0.00021,2]
[321697382,1712405324597,-166.43651254,0.000209,2]
[321697383,1712405324624,-2374.5069896,0.000209,2]
[321697384,1712405324650,-1262.10505582,0.000209,2]
[321697385,1712405324677,-172.4895143,0.00020998,2]
[321697386,1712405324707,-160.93111356,0.00020998,2]
[321697387,1712405324734,-685.82415248,0.00020999,2]
[321697388,1712405324763,-195177.7066617,0.00021,2]
[321697396,1712405386047,-1000.0,0.0002,2]
[321697397,1712405386069,-303.14854414,0.000209,2]
[321697398,1712405386091,-260.58784052,0.000209,2]
[321697399,1712405386113,-5311.63324521,0.000209,2]
[321697400,1712405386134,-154.53413923,0.000209,2]
[321697401,1712405386158,-2591330.9971564,0.00021,2]
[321697402,1712405386179,-1905.67,0.00021,2]
[321697403,1712405386199,-1417.14,0.00021,2]
[321697404,1712405386219,-611657.61996567,0.00021,2]
[321697405,1712405392539,421.88,0.00019618,2]
[321697406,1712405398098,1240.66300341,0.00020998,2]
[321697407,1712405418329,300.0,0.00021,2]
[321697422,1712405431512,-1634.4328,0.00021263,2]
[321697423,1712405431677,-436.01034968,0.00021263,2]
[321697424,1712405431733,-14937.06966477,0.00021263,2]
[321697483,1712405437663,-808.75030777,0.00021263,2]
[321697484,1712405437678,-741.27723955,0.00021263,2]
[321697485,1712405437690,-420.8888349,0.00021263,2]
[321697486,1712405437702,-324.95664198,0.00021263,2]
[321697487,1712405437714,-474.38612961,0.00021263,2]
[321697488,1712405437826,-3510.92503714,0.00021263,2]
[321697489,1712405437837,-5891.82740568,0.00021264,2]
[321697490,1712405437847,-499.99,0.00021264,2]
[321697491,1712405437856,-1129.77110695,0.00021344,2]
[321697492,1712405437866,-5311.63324515,0.00021344,2]
[321697493,1712405437876,-465.27,0.00021478,2]
[321697494,1712405437886,-695.84,0.00021506,2]
[321697495,1712405437895,-10540.28,0.00021615,2]
[321697496,1712405437905,-538.52000028,0.00021616,2]
[321697497,1712405437917,-261.47999972,0.00021616,2]
[321697498,1712405437926,-5891.82740568,0.00021627,2]
[321697499,1712405437936,-163.172919,0.00021644,2]
[321697500,1712405437945,-179.89,0.00021656,2]
[321697501,1712405437955,-226.74848543,0.00021775,2]
[321697502,1712405437965,-550.19062243,0.00021788,2]
[321697503,1712405437978,-579.58048452,0.00021788,2]
[321697504,1712405437988,-5311.63324515,0.00021789,2]
[321697505,1712405438000,-421.88,0.00021882,2]
[321697506,1712405438010,-154.53413923,0.000219,2]
[321697507,1712405438019,-500.0,0.00021917,2]
[321697508,1712405438032,-197.71,0.00021917,2]
[321697509,1712405438042,-500.0,0.00021917,2]
[321697510,1712405438052,-500.0,0.00021917,2]
[321697512,1712405438063,-500.0,0.00021917,2]
[321697514,1712405438073,-542.99047561,0.00021917,2]
[321697516,1712405438082,-500.0,0.00021917,2]
[321697518,1712405438091,-375.95,0.00021917,2]
[321697520,1712405438100,-446.00472897,0.00021917,2]
[321697524,1712405438123,-53.99527103,0.00021917,2]
[321697526,1712405438132,-500.0,0.00021917,2]
[321697528,1712405438142,-500.0,0.00021917,2]
[321697530,1712405438151,-500.0,0.00021917,2]
[321697532,1712405438160,-500.0,0.00021917,2]
[321697534,1712405438169,-500.0,0.00021917,2]
[321697536,1712405438178,-500.0,0.00021917,2]
[321697538,1712405438187,-500.0,0.00021917,2]
[321697540,1712405438197,-500.0,0.00021917,2]
[321697542,1712405438206,-500.0,0.00021917,2]
[321697544,1712405438215,-316.98952276,0.00021917,2]
[321697545,1712405438224,-500.0,0.00021917,2]
[321697547,1712405438233,-500.0,0.00021917,2]
[321697549,1712405438243,-339.77010499,0.00021917,2]
[321697551,1712405438252,-578.45404926,0.00021917,2]
[321697553,1712405438261,-500.0,0.00021917,2]
[321697555,1712405438271,-335.88,0.00021917,2]
[321697557,1712405438280,-583.04,0.00021917,2]
[321697559,1712405438289,-500.0,0.00021917,2]
[321697561,1712405438299,-500.0,0.00021917,2]
[321697563,1712405438308,-500.0,0.00021917,2]
[321697565,1712405438317,-500.0,0.00021917,2]
[321697567,1712405438327,-500.0,0.00021917,2]
[321697569,1712405438336,-500.0,0.00021917,2]
[321697571,1712405438346,-500.0,0.00021917,2]
[321697573,1712405438355,-500.0,0.00021917,2]
[321697575,1712405438365,-500.0,0.00021917,2]
[321697577,1712405438376,-500.0,0.00021917,2]
[321697579,1712405438385,-500.0,0.00021917,2]
[321697581,1712405438394,-500.0,0.00021917,2]
[321697583,1712405438405,-500.0,0.00021917,2]
[321697584,1712405438415,-500.0,0.00021917,2]
[321697585,1712405438424,-500.0,0.00021917,2]
[321697586,1712405438433,-179.89,0.00021938,2]
[321697587,1712405438442,-5891.82740568,0.00021991,2]
[321697588,1712405438453,-584.62934138,0.00022,2]
[321697589,1712405438463,-200.0,0.0002207,2]
[321697590,1712405438472,-179.89,0.0002222,2]
[321697591,1712405438482,-1129.77110695,0.00022232,2]
[321697592,1712405438491,-5311.63324515,0.00022233,2]
[321697593,1712405438500,-5891.82740568,0.00022355,2]
[321697594,1712405438509,-163.172919,0.00022466,2]
[321697595,1712405438518,-303.1485441,0.000225,2]
[321697596,1712405438527,-179.89,0.00022503,2]
[321697597,1712405438536,-437.0,0.000226,2]
[321697598,1712405438547,-226.74848543,0.0002265,2]
[321697599,1712405438555,-341.34813,0.0002267,2]
[321697600,1712405438565,-1129.77110695,0.00022676,2]
[321697601,1712405438574,-1456.18276136,0.00022677,2]
[321697602,1712405438593,-5311.63324515,0.00022678,2]
[321697603,1712405438603,-5891.82740568,0.00022718,2]
[321697604,1712405438613,-179.89,0.00022785,2]
[321697605,1712405438623,-1118.0,0.000229,2]
[321697606,1712405438632,-154.53413923,0.000229,2]
[321697607,1712405438642,-55063.14358214,0.00022909,2]
[321697608,1712405438668,-14986.05889983,0.00022909,2]
[321697609,1712405438680,-1953.13545775,0.00022909,2]
[321697610,1712405438691,-996.50249995,0.00022909,2]
[321697611,1712405438702,-17487.08168212,0.00022909,2]
[321697612,1712405438713,-12209.30490471,0.00022909,2]
[321697613,1712405438723,-927.0,0.00022925,2]
[321697614,1712405438733,-250.0,0.00023,3]
[321697615,1712405438742,-2663.87416105,0.00023,2]
[321697616,1712405438751,-166.45,0.00023053,2]
[321697617,1712405438761,-5891.82740568,0.00023082,2]
[321697618,1712405438770,-1456.18276136,0.00023111,2]
[321697619,1712405438779,-1129.77110695,0.00023121,2]
[321697620,1712405438788,-5311.63324515,0.00023122,2]
[321697621,1712405438798,-230.08,0.00023178,2]
[321697622,1712405438807,-1000.0,0.000232,2]
[321697623,1712405438817,-1000.0,0.00023288,2]
[321697624,1712405438826,-1056.0,0.00023288,2]
[321697625,1712405438835,-1000.0,0.00023288,2]
[321697626,1712405438845,-1000.0,0.00023288,2]
[321697627,1712405438854,-1000.0,0.00023288,2]
[321697628,1712405438863,-1000.0,0.00023288,2]
[321697629,1712405438872,-1000.0,0.00023288,2]
[321697630,1712405438882,-1000.0,0.00023288,2]
[321697631,1712405438892,-1000.0,0.00023288,2]
[321697632,1712405438901,-1000.0,0.00023288,2]
[321697633,1712405438910,-1000.0,0.00023288,2]
[321697634,1712405438920,-163.172919,0.00023288,2]
[321697635,1712405438930,-303.1485441,0.000233,2]
[321697636,1712405438939,-1312.0,0.00023362,2]
[321697637,1712405438949,-23429.554952,0.00023362,2]
[321697638,1712405438962,-2319.38669735,0.00023362,2]
[321697639,1712405439600,-267.93591596,0.00021917,2]
[321697640,1712405439760,-232.06408404,0.00021917,2]
[321697641,1712405439770,-185.47321601,0.00021917,2]
[321697642,1712405439782,-314.52678399,0.00021917,2]
[321697643,1712405439791,-220.27767824,0.00021917,2]
[321697644,1712405439878,-279.72232176,0.00021917,2]
[321697645,1712405439888,-500.0,0.00021917,2]
[321697646,1712405439898,-500.0,0.00021917,2]
[321697647,1712405439907,-20.27767824,0.00021917,2]
[321697648,1712405439920,-343.66545463,0.00021917,2]
[321697649,1712405439929,-1000.0,0.00023288,2]
[321697650,1712405439939,-11767.05835065,0.00023362,2]
[321697651,1712405439948,-5703.0,0.00023362,2]
[321697652,1712405439959,-2459.0,0.00023362,2]
[321697653,1712405439969,-4790.0,0.00023362,2]
[321697654,1712405439978,-1051.0,0.00023362,2]
[321697655,1712405439988,-164.85658769,0.00023363,2]
[321697656,1712405439998,-5891.82740568,0.00023445,2]
[321697657,1712405440008,-155.62920748,0.00023499,2]
[321697658,1712405440018,-155.77109055,0.00023499,2]
[321697659,1712405440027,-9589.6215,0.000235,2]
[321697660,1712405440038,-214.32890752,0.000235,2]
[321697661,1712405440051,-226.74848543,0.00023525,2]
[321697662,1712405440060,-1129.77110695,0.00023565,2]
[321697663,1712405440070,-5311.63324515,0.00023567,2]
[321697664,1712405440079,-11089.0667115,0.00023591,2]
[321697665,1712405440089,-155.68969577,0.00023598,2]
[321697666,1712405440098,-389.81876723,0.00023598,2]
[321697667,1712405440108,-155.60797806,0.00023598,2]
[321697668,1712405440368,-155.92538713,0.00023598,2]
[321697669,1712405440380,-182.94210018,0.00023598,2]
[321697670,1712405440390,-567.71783646,0.00023598,2]
[321697671,1712405440399,-276.07508247,0.00023598,2]
[321697672,1712405440409,-715.12329073,0.00023598,2]
[321697673,1712405440418,-354.73508451,0.00023598,2]
[321697674,1712405440427,-205.23806172,0.00023598,2]
[321697675,1712405440436,-209.93692521,0.00023598,2]
[321697676,1712405440446,-1000.0,0.00023598,2]
[321697677,1712405440457,-1000.0,0.00023598,2]
[321697678,1712405440466,-995.0,0.00023598,2]
[321697679,1712405440475,-779.47949042,0.00023599,2]
[321697680,1712405440484,-254.1463324,0.00023599,2]
[321697681,1712405440493,-1314.60109467,0.00023599,2]
[321697682,1712405440503,-386.8277032,0.000236,2]
[321697683,1712405440512,-14809.24842821,0.000236,3]
[321697686,1712405442400,-322349.56214749,0.000236,3]
[321697687,1712405442413,-7676.56149143,0.000236,3]
[321697688,1712405442512,-5983.56564,0.000236,3]
[321697689,1712405442525,-694.71248249,0.000236,3]
[321697690,1712405442538,-343.4110795,0.000236,3]
[321697691,1712405442552,-524.01327946,0.000236,3]
[321697719,1712405443242,-5.8238745,0.000236,3]
[321697723,1712405443274,-1195.09190425,0.00023599,2]
[321697725,1712405443284,-2951.73213123,0.000236,3]
[321697728,1712405443295,-83985.77409999,0.000236,3]
[321697731,1712405443316,-167000.0,0.000236,3]
[321697733,1712405443328,-1018384.13647809,0.000236,3]
[321697735,1712405443337,-197.530332,0.000236,2]
[321697737,1712405443347,-197.530332,0.000236,2]
[321697739,1712405443356,-393.0,0.000236,2]
[321697741,1712405443368,-151.0,0.000236,7]
[321697743,1712405443377,-2363.1788781,0.00023603,2]
[321697745,1712405443386,-721.2705774,0.00023605,2]
[321697747,1712405443395,-1169.2242782,0.00023619,2]
[321697749,1712405443404,-214.3289075,0.000237,2]
[321697751,1712405443413,-1905.67,0.000237,2]
[321697753,1712405443423,-1417.14,0.000237,2]
[321697755,1712405443432,-153.50763613,0.00023702,2]
[321697757,1712405443441,-800.0,0.00023708,2]
[321697759,1712405443450,-500.0,0.00023708,2]
[321697761,1712405443460,-150.0,0.00023717,2]
[321697763,1712405443469,-150.0,0.00023721,2]
[321697765,1712405443479,-232.018,0.00023721,2]
[321697767,1712405443488,-250.0,0.00023721,2]
[321697769,1712405443496,-974.142,0.00023721,2]
[321697771,1712405443506,-468.106,0.00023721,2]
[321697773,1712405443515,-1410.025,0.00023721,2]
[321697775,1712405443524,-2430.0,0.00023721,2]
[321697777,1712405443533,-285.087,0.00023721,2]
[321697779,1712405443543,-568.713,0.00023721,2]
[321697781,1712405443552,-539.0,0.00023721,2]
[321697783,1712405443561,-607.0,0.00023721,2]
[321697785,1712405443570,-279.0,0.00023721,2]
[321697787,1712405443579,-435.0,0.00023721,2]
[321697789,1712405443588,-805.0,0.00023721,2]
[321697791,1712405443598,-1943.0,0.00023721,2]
[321697793,1712405443607,-397.0,0.00023721,2]
[321697795,1712405443616,-150.0,0.00023721,2]
[321697797,1712405443625,-3034.0,0.00023721,2]
[321697799,1712405443634,-1140.0,0.00023721,2]
[321697801,1712405443644,-1467.0,0.00023721,2]
[321697803,1712405443653,-2433.0,0.00023721,2]
[321697806,1712405443663,-1633.0,0.00023721,2]
[321697807,1712405443672,-150.0,0.00023721,2]
[321697809,1712405443681,-354.0,0.00023721,2]
[321697811,1712405443690,-214.0,0.00023721,2]
[321697814,1712405443700,-14236.8523665,0.000238,2]
[321697815,1712405443709,-150.0,0.000238,2]
[321697818,1712405443719,-150.0,0.00023808,2]
[321697820,1712405443729,-5891.82740568,0.00023809,2]
[321697822,1712405443738,-150.0,0.0002386,2]
[321697824,1712405443747,-11101.0645996,0.00023879,2]
[321697826,1712405443756,-171068.49342578,0.0002388,2]
[321697828,1712405443770,-17213.4999996,0.0002388,2]
[321697914,1712405445473,-500.0,0.00021917,2]
[321697915,1712405445483,-500.0,0.00021917,2]
[321697916,1712405445492,-500.0,0.00021917,2]
[321697917,1712405445501,-828.0,0.000236,2]
[321697918,1712405445510,-10649.21379199,0.0002388,2]
[321697919,1712405445520,-197.530332,0.0002388,2]
[321697920,1712405445529,-197.530332,0.0002388,2]
[321697921,1712405445540,-155.93951836,0.00023894,2]
[321697922,1712405445549,-464.57973632,0.00023897,2]
[321697923,1712405445560,-155.32949821,0.00023897,2]
[321697924,1712405445569,-442.17109145,0.00023897,2]
[321697925,1712405445578,-464.63554701,0.00023898,2]
[321697926,1712405445587,-300.26659085,0.00023898,2]
[321697927,1712405445596,-155.27580194,0.00023898,2]
[321697928,1712405445606,-260.83344969,0.00023898,2]
[321697929,1712405445615,-361.10221362,0.00023898,2]
[321697930,1712405445625,-184.56395466,0.00023898,2]
[321697931,1712405445634,-156.16157304,0.00023898,2]
[321697932,1712405445644,-156.78029353,0.00023898,2]
[321697933,1712405445653,-155.6403865,0.00023898,2]
[321697934,1712405445662,-214.3289075,0.00023899,2]
[321697935,1712405445672,-423.11757857,0.000239,2]
[321697936,1712405445682,-154.53413923,0.000239,2]
[321697937,1712405445691,-237.9,0.00023972,2]
[321697938,1712405445700,-3291.0,0.00023982,2]
[321697939,1712405445709,-151.0,0.00023982,7]
[321697940,1712405445719,-814.0,0.00023999,2]
[321697941,1712405445729,-5000.0,0.00024,5]
[321697942,1712405445738,-5587.51782305,0.00024,2]
[321697943,1712405445747,-8980.58060874,0.00024,2]
[321697944,1712405445757,-1350.24604164,0.00024,2]
[321697945,1712405445766,-224.08606203,0.00024,2]
[321697946,1712405445775,-364.95915067,0.00024,2]
[321697947,1712405445784,-57213.0,0.00024,2]
[321697948,1712405445793,-150.0,0.00024,2]
[321697949,1712405445803,-1129.77110695,0.00024009,2]
[321697950,1712405445813,-5311.63324515,0.00024011,2]
[321697951,1712405445822,-157.04061,0.0002406,2]
[321697952,1712405445832,-214.3289075,0.00024099,2]
[321697953,1712405445843,-1000.0,0.000241,2]
[321697954,1712405445853,-446.0,0.000241,2]
[321697955,1712405445863,-303.1485441,0.000241,2]
[321697956,1712405445873,-163.172919,0.0002411,2]
[321697957,1712405445883,-421.88,0.00024146,2]
[321697958,1712405445892,-5891.82740568,0.00024173,2]
[321697959,1712405445901,-465.27,0.00024218,2]
[321697960,1712405445912,-214.3289075,0.00024298,2]
[321697961,1712405445921,-800.0,0.00024318,2]
[321697962,1712405445931,-226.74848543,0.000244,2]
[321697963,1712405445941,-173.42378444,0.000244,2]
[321697964,1712405445950,-56199.50072188,0.00024439,2]
[321697965,1712405445960,-15000.0,0.0002444,3]
[321697966,1712405445970,-100909.89687114,0.00024441,2]
[321697967,1712405445980,-197.530332,0.00024441,2]
[321697968,1712405445989,-197.530332,0.00024441,2]
[321697969,1712405445999,-1129.77110695,0.00024453,2]
[321697970,1712405446008,-5311.63324515,0.00024456,2]
[321697971,1712405446018,-210.47472086,0.000245,2]
[321697972,1712405446028,-8448.06610495,0.000245,2]
[321697973,1712405446041,-5938.93389505,0.000245,2]
[321697974,1712405446052,-11888.98020655,0.000245,2]
[321697975,1712405446285,-95481.19276549,0.000245,2]
[321697976,1712405446297,-1914.58341318,0.000245,2]
[321697977,1712405446310,-5759.7954,0.000245,2]
[321697978,1712405446322,-6589.99959189,0.000245,2]
[321697979,1712405446356,-453.439,0.00023599,2]
[321697980,1712405446371,-46.561,0.00023599,2]
[321697981,1712405446381,-500.0,0.00023599,2]